[Event "*** Titled Tuesday Blitz"]
[Site "Chess.com"]
[Date "2019.01.01"]
[Round "4"]
[White "Babas"]
[Black "ChainsOfFantasia"]
[Result "1-0"]
[WhiteElo "2275"]
[BlackElo "2414"]
[TimeControl "180+2"]
[EndTime "13:55:41 PST"]
[Termination "Babas won by checkmate"]

1. d4 {[%clk 0:03:01.9]} 1... Nf6 {[%clk 0:03:00.7]} 2. Bg5 {[%clk 0:03:02.4]}
2... Ne4 {[%clk 0:03:00.7]} 3. Bf4 {[%clk 0:03:00]} 3... g5 {[%clk 0:03:01.6]}
4. Bc1 {[%clk 0:02:59.3]} 4... g4 {[%clk 0:03:00.2]} 5. f3 {[%clk 0:02:47]} 5...
gxf3 {[%clk 0:02:59.7]} 6. gxf3 {[%clk 0:02:46.2]} 6... Nd6 {[%clk 0:03:01.6]}
7. e4 {[%clk 0:02:46.7]} 7... b6 {[%clk 0:02:59.7]} 8. Bd3 {[%clk 0:02:44.6]}
8... e6 {[%clk 0:03:00.8]} 9. Be3 {[%clk 0:02:39.1]} 9... Bh6 {[%clk 0:03:00.6]}
10. Bf2 {[%clk 0:02:15.1]} 10... Qg5 {[%clk 0:02:48.4]} 11. Ne2 {[%clk
0:02:06.9]} 11... Qg2 {[%clk 0:02:48.6]} 12. Ng3 {[%clk 0:02:07.9]} 12... Rg8
{[%clk 0:02:28.2]} 13. Bf1 {[%clk 0:02:03.6]} 13... Rxg3 {[%clk 0:02:19.4]} 14.
Bxg2 {[%clk 0:02:01.1]} 14... Rxg2 {[%clk 0:02:21.3]} 15. b3 {[%clk 0:01:46.2]}
15... Nc6 {[%clk 0:02:12.4]} 16. c4 {[%clk 0:01:39.8]} 16... Bb7 {[%clk
0:01:54.1]} 17. Nc3 {[%clk 0:01:40.5]} 17... O-O-O {[%clk 0:01:52.5]} 18. Ne2
{[%clk 0:01:41.2]} 18... f5 {[%clk 0:01:31.6]} 19. Ng3 {[%clk 0:01:16.8]} 19...
fxe4 {[%clk 0:01:27.7]} 20. fxe4 {[%clk 0:00:39.8]} 20... Rf8 {[%clk 0:01:17.6]}
21. Rf1 {[%clk 0:00:33.7]} 21... Rxh2 {[%clk 0:00:46.5]} 22. a3 {[%clk
0:00:34.6]} 22... Na5 {[%clk 0:00:36.1]} 23. Qd3 {[%clk 0:00:26]} 23... Kb8
{[%clk 0:00:08.4]} 24. Ra2 {[%clk 0:00:27]} 24... Nc6 {[%clk 0:00:09.1]} 25. Rh1
{[%clk 0:00:27.7]} 25... Rxh1+ {[%clk 0:00:09.2]} 26. Nxh1 {[%clk 0:00:28.7]}
26... e5 {[%clk 0:00:10.8]} 27. d5 {[%clk 0:00:25.2]} 27... Nd4 {[%clk
0:00:12.1]} 28. Bxd4 {[%clk 0:00:25.6]} 28... exd4 {[%clk 0:00:14]} 29. Rf2
{[%clk 0:00:26.7]} 29... Re8 {[%clk 0:00:14.1]} 30. Re2 {[%clk 0:00:27.6]} 30...
Be3 {[%clk 0:00:14.7]} 31. Ng3 {[%clk 0:00:27.6]} 31... c5 {[%clk 0:00:14.4]}
32. dxc6 {[%clk 0:00:21.6]} 32... Bxc6 {[%clk 0:00:11.9]} 33. Rxe3 {[%clk
0:00:22.9]} 33... Kc7 {[%clk 0:00:08.9]} 34. Qxd4 {[%clk 0:00:23.9]} 34... Rg8
{[%clk 0:00:07.8]} 35. Nf5 {[%clk 0:00:23.1]} 35... Nb7 {[%clk 0:00:08.7]} 36.
Qe5+ {[%clk 0:00:22.4]} 36... Kd8 {[%clk 0:00:08.9]} 37. Qe7+ {[%clk 0:00:21.1]}
37... Kc8 {[%clk 0:00:09.1]} 38. Rg3 {[%clk 0:00:22.5]} 38... Rh8 {[%clk
0:00:08.5]} 39. Qf7 {[%clk 0:00:22.4]} 39... Kc7 {[%clk 0:00:08.2]} 40. Rg8
{[%clk 0:00:23.7]} 40... Nd8 {[%clk 0:00:09]} 41. Qg7 {[%clk 0:00:23.4]} 41...
Rxg8 {[%clk 0:00:10.3]} 42. Qxg8 {[%clk 0:00:24.5]} 42... Bxe4 {[%clk
0:00:12.2]} 43. Qg3+ {[%clk 0:00:23.9]} 43... Kc6 {[%clk 0:00:07.4]} 44. Qd6+
{[%clk 0:00:24.6]} 44... Kb7 {[%clk 0:00:08]} 45. Qxd7+ {[%clk 0:00:26.5]} 45...
Ka6 {[%clk 0:00:08.4]} 46. Nd6 {[%clk 0:00:25.6]} 46... Nb7 {[%clk 0:00:07.4]}
47. Qb5# {[%clk 0:00:26.1]} 1-0

[Event "*** Titled Tuesday Blitz"]
[Site "Chess.com"]
[Date "2019.01.01"]
[Round "4"]
[White "GoingKronos"]
[Black "LastGladiator1"]
[Result "0-1"]
[WhiteElo "2349"]
[BlackElo "2630"]
[TimeControl "180+2"]
[EndTime "13:55:41 PST"]
[Termination "LastGladiator1 won on time"]

1. d4 {[%clk 0:02:59.3]} 1... Nf6 {[%clk 0:03:00.3]} 2. c4 {[%clk 0:02:59.4]}
2... c5 {[%clk 0:02:59.5]} 3. d5 {[%clk 0:02:58.6]} 3... e6 {[%clk 0:03:00.1]}
4. Nc3 {[%clk 0:02:58.5]} 4... exd5 {[%clk 0:03:01]} 5. cxd5 {[%clk 0:03:00]}
5... d6 {[%clk 0:03:02.2]} 6. Nf3 {[%clk 0:02:59.8]} 6... g6 {[%clk 0:03:03.1]}
7. Nd2 {[%clk 0:03:01]} 7... Nbd7 {[%clk 0:03:03.2]} 8. e4 {[%clk 0:03:01.9]}
8... Bg7 {[%clk 0:03:02.2]} 9. Be2 {[%clk 0:03:02.8]} 9... O-O {[%clk 0:03:03]}
10. O-O {[%clk 0:03:03.8]} 10... Re8 {[%clk 0:02:59.4]} 11. a4 {[%clk
0:03:03.2]} 11... a6 {[%clk 0:01:01.4]} 12. Ra3 {[%clk 0:03:00.2]} 12... Ne5
{[%clk 0:00:40.7]} 13. Qc2 {[%clk 0:02:49]} 13... g5 {[%clk 0:00:41.1]} 14. h3
{[%clk 0:02:32.1]} 14... g4 {[%clk 0:00:27.8]} 15. f4 {[%clk 0:02:23]} 15...
gxf3 {[%clk 0:00:24]} 16. Nxf3 {[%clk 0:02:24.2]} 16... Nxf3+ {[%clk 0:00:23.8]}
17. Bxf3 {[%clk 0:02:25.5]} 17... Nd7 {[%clk 0:00:24.6]} 18. Nd1 {[%clk
0:02:20.9]} 18... Ne5 {[%clk 0:00:25.2]} 19. Be2 {[%clk 0:02:08.9]} 19... Bd7
{[%clk 0:00:15.8]} 20. Ne3 {[%clk 0:01:50.6]} 20... Ng6 {[%clk 0:00:07.3]} 21.
Bg4 {[%clk 0:01:42.6]} 21... Bxg4 {[%clk 0:00:04.8]} 22. Nxg4 {[%clk 0:01:43.2]}
22... Qe7 {[%clk 0:00:05.9]} 23. Raf3 {[%clk 0:01:26.1]} 23... Qxe4 {[%clk
0:00:03.8]} 24. Qxe4 {[%clk 0:01:27.2]} 24... Rxe4 {[%clk 0:00:05.7]} 25. Rxf7
{[%clk 0:01:28.4]} 25... Re7 {[%clk 0:00:07]} 26. Rxe7 {[%clk 0:01:23.2]} 26...
Nxe7 {[%clk 0:00:08.9]} 27. Nf6+ {[%clk 0:01:10.2]} 27... Kh8 {[%clk 0:00:09.8]}
28. Bg5 {[%clk 0:01:10.8]} 28... Rf8 {[%clk 0:00:08.9]} 29. Re1 {[%clk
0:00:55.6]} 29... Ng6 {[%clk 0:00:04.5]} 30. Re6 {[%clk 0:00:56.6]} 30... Ne5
{[%clk 0:00:04.3]} 31. Rxd6 {[%clk 0:00:56.1]} 31... Nf7 {[%clk 0:00:05.5]} 32.
Ne4 {[%clk 0:00:18.5]} 32... Bd4+ {[%clk 0:00:05.8]} 33. Kh1 {[%clk 0:00:16.6]}
33... Nxd6 {[%clk 0:00:07]} 34. Nxd6 {[%clk 0:00:17.6]} 34... Rf1+ {[%clk
0:00:08.5]} 35. Kh2 {[%clk 0:00:19]} 35... Be5+ {[%clk 0:00:10.4]} 36. g3 {[%clk
0:00:20.5]} 36... Bxd6 {[%clk 0:00:11.1]} 37. Kg2 {[%clk 0:00:21.7]} 37... Rf5
{[%clk 0:00:12.5]} 38. h4 {[%clk 0:00:21.8]} 38... Rxd5 {[%clk 0:00:12.7]} 39.
Bf6+ {[%clk 0:00:23.2]} 39... Kg8 {[%clk 0:00:14.4]} 40. Kf3 {[%clk 0:00:25.1]}
40... Rf5+ {[%clk 0:00:14.6]} 41. Ke4 {[%clk 0:00:25.7]} 41... Rxf6 {[%clk
0:00:16.5]} 42. Kd5 {[%clk 0:00:27.6]} 42... Bxg3 {[%clk 0:00:17.1]} 0-1

[Event "*** Titled Tuesday Blitz"]
[Site "Chess.com"]
[Date "2019.01.01"]
[Round "4"]
[White "Lion_DL"]
[Black "ASVZ"]
[Result "0-1"]
[WhiteElo "2385"]
[BlackElo "2259"]
[TimeControl "180+2"]
[EndTime "13:55:46 PST"]
[Termination "ASVZ won by resignation"]

1. e4 {[%clk 0:03:01]} 1... e6 {[%clk 0:03:00.8]} 2. Nf3 {[%clk 0:03:01.7]} 2...
d5 {[%clk 0:03:02.1]} 3. e5 {[%clk 0:03:02.8]} 3... c5 {[%clk 0:03:01.9]} 4. b4
{[%clk 0:03:03.9]} 4... cxb4 {[%clk 0:03:03.8]} 5. a3 {[%clk 0:03:04.7]} 5... d4
{[%clk 0:03:05.4]} 6. Bb2 {[%clk 0:02:40.1]} 6... Nc6 {[%clk 0:03:06.1]} 7. Bb5
{[%clk 0:02:41.5]} 7... Bd7 {[%clk 0:03:03.4]} 8. axb4 {[%clk 0:02:38.2]} 8...
Bxb4 {[%clk 0:03:03.4]} 9. O-O {[%clk 0:02:39.7]} 9... Bc5 {[%clk 0:02:54.3]}
10. c3 {[%clk 0:02:24.7]} 10... Qb6 {[%clk 0:02:29.7]} 11. Qe2 {[%clk
0:02:07.4]} 11... d3 {[%clk 0:01:58.2]} 12. Qxd3 {[%clk 0:02:04.7]} 12... a6
{[%clk 0:01:59.6]} 13. Ba3 {[%clk 0:01:45.7]} 13... Qxb5 {[%clk 0:01:54.2]} 14.
Qe4 {[%clk 0:01:40.1]} 14... Nge7 {[%clk 0:01:37.4]} 15. d4 {[%clk 0:01:35.5]}
15... Bxa3 {[%clk 0:01:36.7]} 16. Nxa3 {[%clk 0:01:37.1]} 16... Qd5 {[%clk
0:01:38.6]} 17. Qg4 {[%clk 0:01:36]} 17... O-O {[%clk 0:01:34.1]} 18. c4 {[%clk
0:01:30.6]} 18... Qa5 {[%clk 0:01:34.7]} 19. Nb5 {[%clk 0:01:31.4]} 19... Qd8
{[%clk 0:01:26.2]} 20. Nd6 {[%clk 0:01:31.8]} 20... Bc8 {[%clk 0:01:16.4]} 21.
h4 {[%clk 0:01:31]} 21... Nf5 {[%clk 0:01:17.1]} 22. c5 {[%clk 0:01:26.4]} 22...
b6 {[%clk 0:01:10.4]} 23. Qe4 {[%clk 0:01:22.7]} 23... Qd7 {[%clk 0:00:56.4]}
24. g4 {[%clk 0:01:18.2]} 24... Nxd6 {[%clk 0:00:52.7]} 25. cxd6 {[%clk
0:01:19.7]} 25... Bb7 {[%clk 0:00:51.2]} 26. Ng5 {[%clk 0:01:19.5]} 26... f5
{[%clk 0:00:47.8]} 27. exf6 {[%clk 0:01:07]} 27... gxf6 {[%clk 0:00:48.6]} 28.
Nxe6 {[%clk 0:01:07]} 28... Rfe8 {[%clk 0:00:42.4]} 29. d5 {[%clk 0:01:07.8]}
29... Ne5 {[%clk 0:00:38.3]} 30. Qf5 {[%clk 0:01:01.9]} 30... Bxd5 {[%clk
0:00:29.3]} 31. Nc7 {[%clk 0:01:02.3]} 31... Nf3+ {[%clk 0:00:20.6]} 32. Kg2
{[%clk 0:00:59.4]} 32... Qxf5 {[%clk 0:00:20.6]} 33. gxf5 {[%clk 0:01:00]} 33...
Bc6 {[%clk 0:00:17]} 34. Kg3 {[%clk 0:00:57.6]} 34... Kf7 {[%clk 0:00:16.8]} 35.
Rfc1 {[%clk 0:00:55.7]} 35... Ne5 {[%clk 0:00:17.8]} 36. Rcb1 {[%clk 0:00:48.1]}
36... Rg8+ {[%clk 0:00:17.8]} 37. Kf4 {[%clk 0:00:47.9]} 37... Rg4+ {[%clk
0:00:17.4]} 38. Ke3 {[%clk 0:00:48.8]} 38... Re4+ {[%clk 0:00:18.8]} 39. Kd2
{[%clk 0:00:49.3]} 39... Rd8 {[%clk 0:00:20.7]} 40. Rxb6 {[%clk 0:00:47.2]}
40... Rxd6+ {[%clk 0:00:21.9]} 41. Kc3 {[%clk 0:00:48.5]} 41... Rc4+ {[%clk
0:00:22.9]} 42. Kb3 {[%clk 0:00:48.9]} 42... a5 {[%clk 0:00:22.6]} 43. Rxa5
{[%clk 0:00:46]} 43... Ba4+ {[%clk 0:00:21.5]} 44. Ka2 {[%clk 0:00:40.2]} 44...
Rxb6 {[%clk 0:00:21.7]} 45. Nd5 {[%clk 0:00:38.8]} 45... Bb3+ {[%clk 0:00:22.3]}
46. Ka3 {[%clk 0:00:38.6]} 46... Rb7 {[%clk 0:00:23.6]} 47. Ne3 {[%clk
0:00:37.9]} 47... Rc3 {[%clk 0:00:24.4]} 48. Kb2 {[%clk 0:00:37.1]} 48... Rxe3
{[%clk 0:00:24.6]} 49. fxe3 {[%clk 0:00:37.8]} 49... Nc4+ {[%clk 0:00:25.9]} 50.
Kc3 {[%clk 0:00:39.1]} 50... Nxa5 {[%clk 0:00:27.8]} 51. e4 {[%clk 0:00:40.4]}
51... Rc7+ {[%clk 0:00:27]} 52. Kb4 {[%clk 0:00:40.1]} 52... Rc4+ {[%clk
0:00:28.1]} 53. Kxa5 {[%clk 0:00:41.1]} 53... Rxe4 {[%clk 0:00:30]} 54. h5
{[%clk 0:00:41.8]} 54... Bd1 {[%clk 0:00:30.6]} 0-1

[Event "*** Titled Tuesday Blitz"]
[Site "Chess.com"]
[Date "2019.01.01"]
[Round "4"]
[White "Alexey_Potapov"]
[Black "RajdeepS"]
[Result "1-0"]
[WhiteElo "2423"]
[BlackElo "2505"]
[TimeControl "180+2"]
[EndTime "13:55:47 PST"]
[Termination "Alexey_Potapov won by resignation"]

1. c4 {[%clk 0:02:58.2]} 1... b6 {[%clk 0:02:58.8]} 2. Nf3 {[%clk 0:02:58.6]}
2... Bb7 {[%clk 0:02:59.3]} 3. g3 {[%clk 0:03:00.1]} 3... Bxf3 {[%clk 0:03:00]}
4. exf3 {[%clk 0:03:01.1]} 4... c5 {[%clk 0:03:01.2]} 5. Bg2 {[%clk 0:02:58.7]}
5... Nc6 {[%clk 0:03:02.2]} 6. f4 {[%clk 0:03:00.2]} 6... e6 {[%clk 0:03:00.5]}
7. Nc3 {[%clk 0:03:00.4]} 7... g6 {[%clk 0:03:01.2]} 8. O-O {[%clk 0:02:56.4]}
8... Bg7 {[%clk 0:03:02.3]} 9. d3 {[%clk 0:02:56.5]} 9... Nge7 {[%clk
0:03:03.2]} 10. Rb1 {[%clk 0:02:56.9]} 10... O-O {[%clk 0:03:03.6]} 11. a3
{[%clk 0:02:58.2]} 11... Rc8 {[%clk 0:02:59.3]} 12. Bd2 {[%clk 0:02:57.5]} 12...
a5 {[%clk 0:02:54]} 13. Nb5 {[%clk 0:02:51.5]} 13... d5 {[%clk 0:02:54.7]} 14.
b3 {[%clk 0:02:47.9]} 14... Qd7 {[%clk 0:02:54.8]} 15. Qc2 {[%clk 0:02:42.4]}
15... Rfd8 {[%clk 0:02:55]} 16. Rfd1 {[%clk 0:02:43.5]} 16... Nf5 {[%clk
0:02:50.7]} 17. Bc3 {[%clk 0:02:38.9]} 17... Bxc3 {[%clk 0:02:50.3]} 18. Nxc3
{[%clk 0:02:37.1]} 18... Ncd4 {[%clk 0:02:48.2]} 19. Qb2 {[%clk 0:02:36.1]}
19... Ne7 {[%clk 0:02:41.9]} 20. h4 {[%clk 0:02:27.1]} 20... h5 {[%clk
0:02:35.9]} 21. Re1 {[%clk 0:02:24.2]} 21... b5 {[%clk 0:02:25.3]} 22. a4 {[%clk
0:02:16.7]} 22... b4 {[%clk 0:02:01.2]} 23. Nb5 {[%clk 0:02:13.4]} 23... dxc4
{[%clk 0:01:53.4]} 24. dxc4 {[%clk 0:02:11.4]} 24... Nef5 {[%clk 0:01:47.2]} 25.
Be4 {[%clk 0:02:03.4]} 25... Qe7 {[%clk 0:01:35.3]} 26. Rbd1 {[%clk 0:02:02.6]}
26... Qf6 {[%clk 0:01:35.7]} 27. Kg2 {[%clk 0:01:58.3]} 27... Nd6 {[%clk
0:01:26.7]} 28. Nxd4 {[%clk 0:01:54.2]} 28... cxd4 {[%clk 0:01:25.6]} 29. Qxd4
{[%clk 0:01:52.7]} 29... Nxe4 {[%clk 0:01:11.5]} 30. Qxe4 {[%clk 0:01:47.7]}
30... Qc3 {[%clk 0:01:09.6]} 31. Rxd8+ {[%clk 0:01:37.9]} 31... Rxd8 {[%clk
0:01:09.6]} 32. Re3 {[%clk 0:01:38.7]} 32... Qc1 {[%clk 0:01:10.5]} 33. Rd3
{[%clk 0:01:35.7]} 33... Rxd3 {[%clk 0:00:55]} 34. Qxd3 {[%clk 0:01:36.9]} 34...
Qc3 {[%clk 0:00:55.5]} 35. Qe3 {[%clk 0:01:35.7]} 35... Kf8 {[%clk 0:00:52.9]}
36. Kf3 {[%clk 0:01:22.6]} 36... Qc2 {[%clk 0:00:53.2]} 37. Kg2 {[%clk
0:01:17.6]} 37... Ke7 {[%clk 0:00:50.9]} 38. Qc5+ {[%clk 0:01:14]} 38... Ke8
{[%clk 0:00:49.7]} 39. Qxa5 {[%clk 0:01:11.4]} 39... Qxb3 {[%clk 0:00:50.9]} 40.
Qb5+ {[%clk 0:01:11.4]} 40... Ke7 {[%clk 0:00:47.1]} 41. a5 {[%clk 0:01:06.5]}
41... Qa3 {[%clk 0:00:47.8]} 42. Qb7+ {[%clk 0:01:06.8]} 42... Kf6 {[%clk
0:00:47]} 43. a6 {[%clk 0:01:08.2]} 43... b3 {[%clk 0:00:46.5]} 44. a7 {[%clk
0:01:09.5]} 44... b2 {[%clk 0:00:47.7]} 45. Qxb2+ {[%clk 0:01:01.9]} 45... Qxb2
{[%clk 0:00:47]} 46. a8=Q {[%clk 0:01:03.3]} 46... Qd4 {[%clk 0:00:40.9]} 47.
Qc6 {[%clk 0:01:02.5]} 47... Ke7 {[%clk 0:00:40.1]} 48. Qc7+ {[%clk 0:00:59]}
48... Kf6 {[%clk 0:00:37.4]} 49. Qc6 {[%clk 0:00:59.9]} 49... Ke7 {[%clk
0:00:38.5]} 50. c5 {[%clk 0:01:01.1]} 50... Qd5+ {[%clk 0:00:38.2]} 51. Qxd5
{[%clk 0:01:01.9]} 51... exd5 {[%clk 0:00:39.5]} 52. Kf3 {[%clk 0:01:01.8]}
52... Kd7 {[%clk 0:00:34.1]} 53. Ke3 {[%clk 0:01:01.9]} 53... Kc6 {[%clk
0:00:34.9]} 54. Kd4 {[%clk 0:01:02.1]} 54... f6 {[%clk 0:00:32.2]} 55. f5 {[%clk
0:01:00.2]} 55... gxf5 {[%clk 0:00:30.7]} 56. f4 {[%clk 0:00:59.8]} 1-0

[Event "*** Titled Tuesday Blitz"]
[Site "Chess.com"]
[Date "2019.01.01"]
[Round "4"]
[White "idvidal"]
[Black "Bryakin_Mikhail"]
[Result "0-1"]
[WhiteElo "2479"]
[BlackElo "2690"]
[TimeControl "180+2"]
[EndTime "13:55:52 PST"]
[Termination "Bryakin_Mikhail won by resignation"]

1. d4 {[%clk 0:03:01.9]} 1... d5 {[%clk 0:02:47.4]} 2. Nf3 {[%clk 0:03:01.7]}
2... Nf6 {[%clk 0:02:45.1]} 3. c4 {[%clk 0:03:02]} 3... c6 {[%clk 0:02:45.9]} 4.
Nc3 {[%clk 0:03:02.3]} 4... a6 {[%clk 0:02:47]} 5. e3 {[%clk 0:02:59.8]} 5... b5
{[%clk 0:02:47.2]} 6. b3 {[%clk 0:02:59.9]} 6... Bg4 {[%clk 0:02:46.1]} 7. Be2
{[%clk 0:02:59.7]} 7... e6 {[%clk 0:02:46.9]} 8. O-O {[%clk 0:03:00]} 8... Bb4
{[%clk 0:02:47]} 9. Bb2 {[%clk 0:02:55.9]} 9... Nbd7 {[%clk 0:02:45.4]} 10. h3
{[%clk 0:02:48.9]} 10... Bh5 {[%clk 0:02:39.8]} 11. Ne5 {[%clk 0:02:29.2]} 11...
Bxe2 {[%clk 0:02:30.5]} 12. Qxe2 {[%clk 0:02:31.1]} 12... Nxe5 {[%clk
0:02:31.5]} 13. dxe5 {[%clk 0:02:30.6]} 13... Nd7 {[%clk 0:02:27.7]} 14. cxd5
{[%clk 0:02:25.5]} 14... cxd5 {[%clk 0:02:26.5]} 15. Rfd1 {[%clk 0:02:24.1]}
15... Qa5 {[%clk 0:01:56.9]} 16. Nxd5 {[%clk 0:01:48.4]} 16... exd5 {[%clk
0:01:50.2]} 17. Qg4 {[%clk 0:01:23.3]} 17... Bc3 {[%clk 0:01:19.1]} 18. Qxg7
{[%clk 0:00:22]} 18... Rf8 {[%clk 0:01:11.9]} 19. Rxd5 {[%clk 0:00:08.1]} 19...
Bxb2 {[%clk 0:01:06.7]} 20. Rad1 {[%clk 0:00:09.3]} 20... Ra7 {[%clk 0:00:56.2]}
21. Qxh7 {[%clk 0:00:05.8]} 21... Nxe5 {[%clk 0:00:37.5]} 22. Qc2 {[%clk
0:00:04.1]} 22... Qc3 {[%clk 0:00:17.6]} 23. Qf5 {[%clk 0:00:04.8]} 23... Qc7
{[%clk 0:00:09.7]} 24. Qf6 {[%clk 0:00:04]} 24... Nc6 {[%clk 0:00:06.1]} 25.
Qxb2 {[%clk 0:00:04.7]} 25... f6 {[%clk 0:00:05.3]} 26. Qc3 {[%clk 0:00:05.8]}
26... Rf7 {[%clk 0:00:06]} 27. Qd3 {[%clk 0:00:06.7]} 27... Ne5 {[%clk
0:00:06.5]} 28. Qf5 {[%clk 0:00:07.3]} 28... Kf8 {[%clk 0:00:06.5]} 29. Rd6
{[%clk 0:00:07.6]} 29... Kg7 {[%clk 0:00:07.1]} 30. f4 {[%clk 0:00:07.3]} 30...
Ng6 {[%clk 0:00:07.7]} 31. Qg4 {[%clk 0:00:07.2]} 31... Kh7 {[%clk 0:00:07.2]}
32. f5 {[%clk 0:00:08.2]} 32... Nf8 {[%clk 0:00:08.6]} 33. Qh5+ {[%clk
0:00:09.1]} 33... Kg8 {[%clk 0:00:10.2]} 34. R6d4 {[%clk 0:00:10.3]} 34... Rg7
{[%clk 0:00:10.8]} 35. Rd8 {[%clk 0:00:10.7]} 35... Qf7 {[%clk 0:00:11.4]} 36.
Qf3 {[%clk 0:00:10.6]} 36... Re7 {[%clk 0:00:12.6]} 37. e4 {[%clk 0:00:11.1]}
37... Re8 {[%clk 0:00:13.9]} 38. Rxe8 {[%clk 0:00:11.2]} 38... Qxe8 {[%clk
0:00:15.8]} 39. Rd2 {[%clk 0:00:11.5]} 39... Nd7 {[%clk 0:00:16.8]} 40. Qc3
{[%clk 0:00:11.9]} 40... Ne5 {[%clk 0:00:17.1]} 41. Kh2 {[%clk 0:00:12.4]} 41...
Qh5 {[%clk 0:00:18.5]} 42. Qc8+ {[%clk 0:00:11.9]} 42... Kh7 {[%clk 0:00:19.4]}
43. Qxa6 {[%clk 0:00:07.8]} 43... Qg5 {[%clk 0:00:20.5]} 44. Rf2 {[%clk
0:00:04.4]} 44... Nf3+ {[%clk 0:00:17.5]} 45. Kh1 {[%clk 0:00:04.3]} 45... Qc1+
{[%clk 0:00:18.4]} 0-1

[Event "*** Titled Tuesday Blitz"]
[Site "Chess.com"]
[Date "2019.01.01"]
[Round "4"]
[White "ChessMavenYeti"]
[Black "ElenaPershina"]
[Result "1/2-1/2"]
[WhiteElo "2090"]
[BlackElo "1911"]
[TimeControl "180+2"]
[EndTime "13:55:52 PST"]
[Termination "Game drawn by agreement"]

1. d4 {[%clk 0:02:48.7]} 1... d5 {[%clk 0:02:59.9]} 2. c4 {[%clk 0:02:49.5]}
2... c6 {[%clk 0:02:59.7]} 3. e3 {[%clk 0:02:45.3]} 3... a6 {[%clk 0:03:00.2]}
4. Nf3 {[%clk 0:02:45.9]} 4... Nf6 {[%clk 0:03:00.8]} 5. Nc3 {[%clk 0:02:46.1]}
5... g6 {[%clk 0:02:57.6]} 6. Be2 {[%clk 0:02:42]} 6... Bg7 {[%clk 0:02:58.5]}
7. O-O {[%clk 0:02:43]} 7... O-O {[%clk 0:02:59.5]} 8. b3 {[%clk 0:02:44.3]}
8... Bg4 {[%clk 0:02:53.7]} 9. Bb2 {[%clk 0:02:42.8]} 9... Bxf3 {[%clk
0:02:52.3]} 10. Bxf3 {[%clk 0:02:42.6]} 10... e6 {[%clk 0:02:50.5]} 11. Rc1
{[%clk 0:02:43.1]} 11... Nbd7 {[%clk 0:02:50.6]} 12. Na4 {[%clk 0:02:37.6]}
12... Rc8 {[%clk 0:02:49.7]} 13. Ba3 {[%clk 0:02:35.8]} 13... Re8 {[%clk
0:02:49.5]} 14. Nc5 {[%clk 0:02:27.9]} 14... Nxc5 {[%clk 0:02:49.2]} 15. dxc5
{[%clk 0:02:23.9]} 15... Nd7 {[%clk 0:02:16]} 16. cxd5 {[%clk 0:02:21.1]} 16...
cxd5 {[%clk 0:02:07.1]} 17. b4 {[%clk 0:02:21.1]} 17... Ne5 {[%clk 0:02:05.8]}
18. Be2 {[%clk 0:02:18.3]} 18... Qh4 {[%clk 0:02:00.7]} 19. Qb3 {[%clk
0:02:13.3]} 19... Ng4 {[%clk 0:01:55.1]} 20. h3 {[%clk 0:02:08.1]} 20... Nf6
{[%clk 0:01:42.8]} 21. Bb2 {[%clk 0:02:07.5]} 21... Ne4 {[%clk 0:01:42.3]} 22.
Bxg7 {[%clk 0:02:06.1]} 22... Kxg7 {[%clk 0:01:43.3]} 23. Rcd1 {[%clk
0:01:57.3]} 23... Qf6 {[%clk 0:01:41.6]} 24. Rd4 {[%clk 0:01:54.8]} 24... Red8
{[%clk 0:01:34.7]} 25. Bd3 {[%clk 0:01:36.9]} 25... Nd2 {[%clk 0:01:15.9]} 26.
Qd1 {[%clk 0:01:36.1]} 26... Nxf1 {[%clk 0:01:16.5]} 27. Bxf1 {[%clk 0:01:37.1]}
27... Rc6 {[%clk 0:00:59.9]} 28. a3 {[%clk 0:01:35.4]} 28... Rdc8 {[%clk
0:00:53.7]} 29. Qa4 {[%clk 0:01:30.7]} 29... Rd8 {[%clk 0:00:49.7]} 30. Qa5
{[%clk 0:01:21.8]} 30... e5 {[%clk 0:00:48.9]} 31. Rd3 {[%clk 0:01:11.3]} 31...
d4 {[%clk 0:00:49.6]} 32. exd4 {[%clk 0:01:12.6]} 32... Rxd4 {[%clk 0:00:47.7]}
33. Rf3 {[%clk 0:01:13.5]} 33... Rf4 {[%clk 0:00:46.9]} 34. Rxf4 {[%clk
0:01:12.3]} 34... Qxf4 {[%clk 0:00:47.2]} 35. Qd8 {[%clk 0:01:10.4]} 35... Rf6
{[%clk 0:00:46]} 36. f3 {[%clk 0:01:01.6]} 36... e4 {[%clk 0:00:39.6]} 37. Be2
{[%clk 0:00:57.1]} 37... Qe3+ {[%clk 0:00:35.9]} 38. Kf1 {[%clk 0:00:57.3]}
38... exf3 {[%clk 0:00:31]} 39. Bxf3 {[%clk 0:00:56.6]} 39... Qc1+ {[%clk
0:00:30.7]} 40. Kf2 {[%clk 0:00:55.6]} 40... Qxa3 {[%clk 0:00:29.1]} 41. Qd4
{[%clk 0:00:56.1]} 41... Qa2+ {[%clk 0:00:27.7]} 42. Kg1 {[%clk 0:00:56.4]}
42... Qb1+ {[%clk 0:00:26.4]} 43. Kh2 {[%clk 0:00:56.7]} 43... Qf5 {[%clk
0:00:23.3]} 44. Bxb7 {[%clk 0:00:55.8]} 44... Qe6 {[%clk 0:00:17.6]} 45. c6
{[%clk 0:00:44.1]} 45... Qe7 {[%clk 0:00:16]} 46. Bxa6 {[%clk 0:00:41.1]} 46...
Qc7+ {[%clk 0:00:16.6]} 47. Kh1 {[%clk 0:00:39]} 47... Qxc6 {[%clk 0:00:17.6]}
48. Bc4 {[%clk 0:00:31.9]} 48... Qd6 {[%clk 0:00:15.9]} 49. Qc3 {[%clk
0:00:22.5]} 1/2-1/2